[Event "Titled Tuesday Blitz April 19 Early 2022"]
[White "Pranav, V"]
[Black "Pakleza, Zbigniew"]
[WhiteFideId "25060783"]
[BlackFideId "1119290"]
[WhiteElo "2349"]
[BlackElo "2467"]
[Result "1-0"]
[Round "11"]
[TimeControl "180+1"]
[Date "2022.04.19"]
[WhiteClock "0:00:20"]
[BlackClock "0:00:10"]

1. e4 {[%clk 0:02:59]}  d6 {[%clk 0:02:59]} 2. d4 {[%clk 0:02:58]}  Nf6 {[%clk 0:03:00]} 3. Nc3 {[%clk 0:02:59]}  c6 {[%clk 0:02:58]} 4. Nf3 {[%clk 0:02:58]}  Bg4 {[%clk 0:02:58]} 5. h3 {[%clk 0:02:58]}  Bh5 {[%clk 0:02:58]} 6. Bc4 {[%clk 0:02:57]}  e6 {[%clk 0:02:54]} 7. Bd3 {[%clk 0:02:54]}  Be7 {[%clk 0:02:50]} 8. Bg5 {[%clk 0:02:50]}  d5 {[%clk 0:02:48]} 9. e5 {[%clk 0:02:49]}  Nfd7 {[%clk 0:02:48]} 10. Bxe7 {[%clk 0:02:46]}  Qxe7 {[%clk 0:02:49]} 11. Qd2 {[%clk 0:02:42]}  a6 {[%clk 0:02:41]} 12. g4 {[%clk 0:02:39]}  Bg6 {[%clk 0:02:40]} 13. h4 {[%clk 0:02:39]}  c5 {[%clk 0:02:38]} 14. dxc5 {[%clk 0:02:28]}  Nc6 {[%clk 0:02:36]} 15. Bxg6 {[%clk 0:02:15]}  hxg6 {[%clk 0:02:37]} 16. O-O-O {[%clk 0:02:14]}  Qxc5 {[%clk 0:02:28]} 17. h5 {[%clk 0:02:04]}  gxh5 {[%clk 0:02:24]} 18. gxh5 {[%clk 0:02:05]}  O-O-O {[%clk 0:02:22]} 19. Rde1 {[%clk 0:01:55]}  Qe7 {[%clk 0:02:08]} 20. Qf4 {[%clk 0:01:51]}  Rdf8 {[%clk 0:01:47]} 21. Qg3 {[%clk 0:01:48]}  Rfg8 {[%clk 0:01:41]} 22. a3 {[%clk 0:01:43]}  Nb6 {[%clk 0:01:39]} 23. Nd2 {[%clk 0:01:40]}  Kb8 {[%clk 0:01:37]} 24. f4 {[%clk 0:01:37]}  Ka8 {[%clk 0:01:33]} 25. Kb1 {[%clk 0:01:35]}  Na5 {[%clk 0:01:28]} 26. Qf2 {[%clk 0:01:29]}  Nac4 {[%clk 0:01:24]} 27. Nb3 {[%clk 0:01:23]}  Rc8 {[%clk 0:01:22]} 28. Qd4 {[%clk 0:01:20]}  Qc7 {[%clk 0:01:19]} 29. Reg1 {[%clk 0:01:18]}  Rhg8 {[%clk 0:01:10]} 30. Rg3 {[%clk 0:01:09]}  Qe7 {[%clk 0:01:05]} 31. Rhg1 {[%clk 0:01:07]}  Nxb2 {[%clk 0:00:56]} 32. Qxb6 {[%clk 0:01:02]}  Nc4 {[%clk 0:00:55]} 33. Qd4 {[%clk 0:00:50]}  Qxa3 {[%clk 0:00:55]} 34. Na2 {[%clk 0:00:48]}  Rc6 {[%clk 0:00:46]} 35. Nbc1 {[%clk 0:00:47]}  Qa5 {[%clk 0:00:34]} 36. Nb3 {[%clk 0:00:39]}  Rb6 {[%clk 0:00:32]} 37. Ka1 {[%clk 0:00:34]}  Qa3 {[%clk 0:00:25]} 38. Nd2 {[%clk 0:00:31]}  Qa5 {[%clk 0:00:10]} 39. Nxc4 {[%clk 0:00:28]}  dxc4 {[%clk 0:00:11]} 40. Qxc4 {[%clk 0:00:29]}  Rc6 {[%clk 0:00:09]} 41. Qb4 {[%clk 0:00:26]}  Qc7 {[%clk 0:00:10]} 42. c3 {[%clk 0:00:23]}  Rh8 {[%clk 0:00:10]} 43. Rxg7 {[%clk 0:00:19]}  Rxh5 {[%clk 0:00:10]} 44. Rg8+ {[%clk 0:00:20]}  Ka7 {[%clk 0:00:11]} 45. Qd4+ {[%clk 0:00:20]}  b6 {[%clk 0:00:11]} 46. Rd8 {[%clk 0:00:19]}  Rc4 {[%clk 0:00:09]} 47. Rd7 {[%clk 0:00:19]}  Rxd4 {[%clk 0:00:08]} 48. Rxc7+ {[%clk 0:00:20]}  Kb8 {[%clk 0:00:09]} 49. Rxf7 {[%clk 0:00:20]}  Rd2 {[%clk 0:00:10]} 1-0


[Site "https://www.chess.com"]

[Event "Titled Tuesday Blitz April 19 Early 2022"]
[White "Quirke, Jeffrey"]
[Black "Sovetbekova, Nurai"]
[WhiteFideId "2013029"]
[BlackFideId "13801910"]
[WhiteElo "2161"]
[BlackElo "1538"]
[Result "1-0"]
[Round "11"]
[TimeControl "180+1"]
[Date "2022.04.19"]
[WhiteClock "0:00:19"]
[BlackClock "0:00:10"]

1. d4 {[%clk 0:03:00]}  Nf6 {[%clk 0:02:59]} 2. c4 {[%clk 0:03:01]}  g6 {[%clk 0:02:59]} 3. Nc3 {[%clk 0:03:01]}  d5 {[%clk 0:02:59]} 4. cxd5 {[%clk 0:03:02]}  Nxd5 {[%clk 0:03:00]} 5. e4 {[%clk 0:03:03]}  Nxc3 {[%clk 0:03:00]} 6. bxc3 {[%clk 0:03:04]}  Bg7 {[%clk 0:03:00]} 7. Nf3 {[%clk 0:03:05]}  c5 {[%clk 0:03:01]} 8. Be3 {[%clk 0:03:06]}  Qa5 {[%clk 0:02:59]} 9. Qd2 {[%clk 0:03:06]}  Nc6 {[%clk 0:02:56]} 10. Rb1 {[%clk 0:03:05]}  a6 {[%clk 0:02:45]} 11. Rc1 {[%clk 0:03:04]}  cxd4 {[%clk 0:02:42]} 12. cxd4 {[%clk 0:03:05]}  Qxd2+ {[%clk 0:02:42]} 13. Kxd2 {[%clk 0:03:05]}  O-O {[%clk 0:02:41]} 14. Bd3 {[%clk 0:03:01]}  Bg4 {[%clk 0:02:16]} 15. d5 {[%clk 0:02:52]}  Bxf3 {[%clk 0:01:59]} 16. gxf3 {[%clk 0:02:53]}  Ne5 {[%clk 0:01:59]} 17. Rc7 {[%clk 0:02:34]}  Nxf3+ {[%clk 0:01:50]} 18. Ke2 {[%clk 0:02:35]}  Ne5 {[%clk 0:01:43]} 19. Rxe7 {[%clk 0:02:30]}  Nxd3 {[%clk 0:01:41]} 20. Kxd3 {[%clk 0:02:29]}  b5 {[%clk 0:01:41]} 21. Rc1 {[%clk 0:02:11]}  Bf6 {[%clk 0:01:38]} 22. Rb7 {[%clk 0:02:08]}  Rab8 {[%clk 0:01:33]} 23. Rxb8 {[%clk 0:01:52]}  Rxb8 {[%clk 0:01:31]} 24. f4 {[%clk 0:01:53]}  Be7 {[%clk 0:01:23]} 25. e5 {[%clk 0:01:50]}  f6 {[%clk 0:01:16]} 26. Rc7 {[%clk 0:01:31]}  Bd8 {[%clk 0:01:13]} 27. Ra7 {[%clk 0:01:30]}  fxe5 {[%clk 0:01:13]} 28. fxe5 {[%clk 0:01:29]}  a5 {[%clk 0:01:07]} 29. d6 {[%clk 0:01:24]}  a4 {[%clk 0:01:02]} 30. e6 {[%clk 0:01:20]}  Kf8 {[%clk 0:01:02]} 31. e7+ {[%clk 0:01:10]}  Bxe7 {[%clk 0:01:00]} 32. dxe7+ {[%clk 0:01:11]}  Ke8 {[%clk 0:00:58]} 33. a3 {[%clk 0:01:00]}  b4 {[%clk 0:00:54]} 34. axb4 {[%clk 0:00:59]}  Rxb4 {[%clk 0:00:55]} 35. Bc5 {[%clk 0:00:56]}  Rb8 {[%clk 0:00:54]} 36. Rxa4 {[%clk 0:00:55]}  h5 {[%clk 0:00:54]} 37. h4 {[%clk 0:00:53]}  Rc8 {[%clk 0:00:50]} 38. Kd4 {[%clk 0:00:45]}  g5 {[%clk 0:00:48]} 39. hxg5 {[%clk 0:00:44]}  Kf7 {[%clk 0:00:44]} 40. Kd5 {[%clk 0:00:42]}  h4 {[%clk 0:00:39]} 41. Rxh4 {[%clk 0:00:40]}  Ra8 {[%clk 0:00:30]} 42. Rf4+ {[%clk 0:00:39]}  Kg7 {[%clk 0:00:20]} 43. Rf8 {[%clk 0:00:37]}  Ra1 {[%clk 0:00:16]} 44. Bd4+ {[%clk 0:00:28]}  Kh7 {[%clk 0:00:11]} 45. Rh8+ {[%clk 0:00:26]}  Kg6 {[%clk 0:00:11]} 46. e8=Q+ {[%clk 0:00:26]}  Kf5 {[%clk 0:00:10]} 47. Bxa1 {[%clk 0:00:22]}  Kg4 {[%clk 0:00:10]} 48. g6 {[%clk 0:00:19]} 1-0


[Site "https://www.chess.com"]

[Event "Titled Tuesday Blitz April 19 Early 2022"]
[White "Reprintsev, Alexander"]
[Black "Van den Dikkenberg, Erik"]
[WhiteFideId "14100541"]
[BlackFideId "1005880"]
[WhiteElo "2108"]
[BlackElo "2118"]
[Result "1-0"]
[Round "11"]
[TimeControl "180+1"]
[Date "2022.04.19"]
[WhiteClock "0:01:14"]
[BlackClock "0:00:09"]

1. e4 {[%clk 0:03:00]}  c5 {[%clk 0:02:59]} 2. b3 {[%clk 0:03:00]}  Nc6 {[%clk 0:02:55]} 3. Bb2 {[%clk 0:03:01]}  d6 {[%clk 0:02:56]} 4. Bb5 {[%clk 0:03:00]}  Nf6 {[%clk 0:02:56]} 5. f3 {[%clk 0:02:59]}  e6 {[%clk 0:02:54]} 6. Ne2 {[%clk 0:02:58]}  Be7 {[%clk 0:02:54]} 7. d4 {[%clk 0:02:59]}  Qb6 {[%clk 0:02:46]} 8. Nbc3 {[%clk 0:02:58]}  cxd4 {[%clk 0:02:44]} 9. Nxd4 {[%clk 0:02:58]}  O-O {[%clk 0:02:42]} 10. Na4 {[%clk 0:02:56]}  Qc7 {[%clk 0:02:37]} 11. Bxc6 {[%clk 0:02:51]}  bxc6 {[%clk 0:02:37]} 12. c4 {[%clk 0:02:51]}  c5 {[%clk 0:02:34]} 13. Nb5 {[%clk 0:02:50]}  Qb8 {[%clk 0:02:32]} 14. Qd2 {[%clk 0:02:48]}  a6 {[%clk 0:02:27]} 15. Nbc3 {[%clk 0:02:48]}  Qc7 {[%clk 0:02:21]} 16. O-O-O {[%clk 0:02:48]}  Bd7 {[%clk 0:02:05]} 17. g4 {[%clk 0:02:47]}  Bxa4 {[%clk 0:02:04]} 18. Nxa4 {[%clk 0:02:47]}  Rab8 {[%clk 0:01:55]} 19. h4 {[%clk 0:02:46]}  Rb4 {[%clk 0:01:53]} 20. h5 {[%clk 0:02:42]}  Rfb8 {[%clk 0:01:46]} 21. Qc3 {[%clk 0:02:41]}  Qa5 {[%clk 0:01:38]} 22. h6 {[%clk 0:02:30]}  Rxa4 {[%clk 0:01:33]} 23. bxa4 {[%clk 0:02:30]}  Qxa4 {[%clk 0:01:32]} 24. hxg7 {[%clk 0:02:28]}  Qxa2 {[%clk 0:01:19]} 25. Rh2 {[%clk 0:02:17]}  e5 {[%clk 0:01:12]} 26. Rc2 {[%clk 0:02:15]}  a5 {[%clk 0:01:07]} 27. Qa3 {[%clk 0:02:14]}  Qxa3 {[%clk 0:01:01]} 28. Bxa3 {[%clk 0:02:14]}  Rb3 {[%clk 0:01:02]} 29. Bb2 {[%clk 0:02:11]}  Rxf3 {[%clk 0:01:00]} 30. Re1 {[%clk 0:02:03]}  Kxg7 {[%clk 0:00:56]} 31. Bc3 {[%clk 0:01:58]}  Rf4 {[%clk 0:00:54]} 32. Rce2 {[%clk 0:01:48]}  Rxg4 {[%clk 0:00:47]} 33. Bxa5 {[%clk 0:01:48]}  h5 {[%clk 0:00:46]} 34. Bc7 {[%clk 0:01:48]}  h4 {[%clk 0:00:34]} 35. Kc2 {[%clk 0:01:44]}  Kg6 {[%clk 0:00:32]} 36. Kd3 {[%clk 0:01:42]}  Nh5 {[%clk 0:00:31]} 37. Rd2 {[%clk 0:01:37]}  Nf4+ {[%clk 0:00:30]} 38. Kc2 {[%clk 0:01:35]}  h3 {[%clk 0:00:30]} 39. Bxd6 {[%clk 0:01:31]}  Bh4 {[%clk 0:00:21]} 40. Rh1 {[%clk 0:01:28]}  f6 {[%clk 0:00:21]} 41. Bxc5 {[%clk 0:01:28]}  Rg2 {[%clk 0:00:20]} 42. Be3 {[%clk 0:01:26]}  Rxd2+ {[%clk 0:00:19]} 43. Kxd2 {[%clk 0:01:26]}  Bg5 {[%clk 0:00:19]} 44. c5 {[%clk 0:01:22]}  Kf7 {[%clk 0:00:15]} 45. Kc3 {[%clk 0:01:15]}  Ke7 {[%clk 0:00:14]} 46. Bxf4 {[%clk 0:01:15]}  exf4 {[%clk 0:00:10]} 47. Rxh3 {[%clk 0:01:15]}  Kd7 {[%clk 0:00:09]} 48. Kd4 {[%clk 0:01:14]}  Kc6 {[%clk 0:00:09]} 49. Ra3 {[%clk 0:01:14]}  f3 {[%clk 0:00:09]} 50. Rxf3 {[%clk 0:01:14]} 1-0


[Site "https://www.chess.com"]

[Event "Titled Tuesday Blitz April 19 Early 2022"]
[White "Rottenwohrer Suarez, Juan"]
[Black "Friedel, Tom"]
[WhiteFideId "32068182"]
[BlackFideId "2002108"]
[WhiteElo "2158"]
[BlackElo "2310"]
[Result "1-0"]
[Round "11"]
[TimeControl "180+1"]
[Date "2022.04.19"]
[WhiteClock "0:00:14"]
[BlackClock "0:00:27"]

1. d4 {[%clk 0:03:00]}  d5 {[%clk 0:02:59]} 2. c4 {[%clk 0:03:00]}  e6 {[%clk 0:03:00]} 3. Nf3 {[%clk 0:02:49]}  Nf6 {[%clk 0:03:00]} 4. g3 {[%clk 0:02:46]}  Be7 {[%clk 0:02:59]} 5. Bg2 {[%clk 0:02:47]}  Nbd7 {[%clk 0:02:59]} 6. O-O {[%clk 0:02:37]}  O-O {[%clk 0:02:58]} 7. Qc2 {[%clk 0:02:31]}  c6 {[%clk 0:02:55]} 8. Nbd2 {[%clk 0:02:25]}  b6 {[%clk 0:02:55]} 9. e4 {[%clk 0:02:21]}  Bb7 {[%clk 0:02:54]} 10. e5 {[%clk 0:02:15]}  Ne8 {[%clk 0:02:54]} 11. cxd5 {[%clk 0:02:10]}  cxd5 {[%clk 0:02:54]} 12. Re1 {[%clk 0:02:05]}  Rc8 {[%clk 0:02:43]} 13. Qd1 {[%clk 0:02:00]}  Nc7 {[%clk 0:02:33]} 14. Nb1 {[%clk 0:01:26]}  Ba6 {[%clk 0:02:29]} 15. Nc3 {[%clk 0:01:26]}  Nb5 {[%clk 0:02:29]} 16. Bd2 {[%clk 0:01:11]}  Nxc3 {[%clk 0:02:25]} 17. Bxc3 {[%clk 0:01:12]}  Qc7 {[%clk 0:02:11]} 18. h4 {[%clk 0:01:04]}  b5 {[%clk 0:02:07]} 19. Bf1 {[%clk 0:01:03]}  Qb7 {[%clk 0:01:52]} 20. a3 {[%clk 0:01:01]}  Nb6 {[%clk 0:01:49]} 21. Ng5 {[%clk 0:00:56]}  h6 {[%clk 0:01:47]} 22. Nf3 {[%clk 0:00:53]}  Na4 {[%clk 0:01:47]} 23. Qb3 {[%clk 0:00:50]}  Rc6 {[%clk 0:01:21]} 24. Bd2 {[%clk 0:00:48]}  Rfc8 {[%clk 0:01:18]} 25. Bd3 {[%clk 0:00:48]}  Nb6 {[%clk 0:01:12]} 26. Bb1 {[%clk 0:00:45]}  Nc4 {[%clk 0:00:59]} 27. Qd3 {[%clk 0:00:45]}  g6 {[%clk 0:00:58]} 28. Bxh6 {[%clk 0:00:41]}  Nxb2 {[%clk 0:00:58]} 29. Qd2 {[%clk 0:00:39]}  Nc4 {[%clk 0:00:44]} 30. Qf4 {[%clk 0:00:39]}  Bf8 {[%clk 0:00:44]} 31. h5 {[%clk 0:00:38]}  Bg7 {[%clk 0:00:37]} 32. Bxg7 {[%clk 0:00:31]}  Kxg7 {[%clk 0:00:37]} 33. Qf6+ {[%clk 0:00:17]}  Kg8 {[%clk 0:00:32]} 34. h6 {[%clk 0:00:14]}  Kf8 {[%clk 0:00:30]} 35. h7 {[%clk 0:00:14]}  Ke8 {[%clk 0:00:28]} 36. h8=Q+ {[%clk 0:00:14]}  Kd7 {[%clk 0:00:27]} 37. Qxf7# {[%clk 0:00:14]} 1-0


[Site "https://www.chess.com"]

[Event "Titled Tuesday Blitz April 19 Early 2022"]
[White "Rozman, Levy"]
[Black "Tasev, Dejan"]
[WhiteFideId "2039877"]
[BlackFideId "936618"]
[WhiteElo "2704"]
[BlackElo "2567"]
[Result "1-0"]
[Round "11"]
[TimeControl "180+1"]
[Date "2022.04.19"]
[WhiteClock "0:00:06"]
[BlackClock "0:00:13"]

1. d4 {[%clk 0:03:00]}  Nf6 {[%clk 0:02:57]} 2. Nc3 {[%clk 0:03:00]}  d5 {[%clk 0:02:56]} 3. Bf4 {[%clk 0:02:59]}  c6 {[%clk 0:02:56]} 4. e3 {[%clk 0:02:58]}  Bf5 {[%clk 0:02:55]} 5. f3 {[%clk 0:02:56]}  Bg6 {[%clk 0:02:54]} 6. g4 {[%clk 0:02:56]}  h6 {[%clk 0:02:54]} 7. h4 {[%clk 0:02:55]}  e6 {[%clk 0:02:53]} 8. Bd3 {[%clk 0:02:53]}  Bxd3 {[%clk 0:02:52]} 9. cxd3 {[%clk 0:02:50]}  Bd6 {[%clk 0:02:52]} 10. Nge2 {[%clk 0:02:50]}  Qc7 {[%clk 0:02:48]} 11. Qb3 {[%clk 0:02:46]}  Bxf4 {[%clk 0:02:47]} 12. Nxf4 {[%clk 0:02:45]}  Nbd7 {[%clk 0:02:47]} 13. O-O-O {[%clk 0:02:43]}  e5 {[%clk 0:02:40]} 14. Nfe2 {[%clk 0:02:31]}  O-O-O {[%clk 0:02:38]} 15. Kb1 {[%clk 0:02:30]}  Rhe8 {[%clk 0:02:35]} 16. g5 {[%clk 0:02:27]}  hxg5 {[%clk 0:02:30]} 17. hxg5 {[%clk 0:02:27]}  Ng8 {[%clk 0:02:29]} 18. Nxd5 {[%clk 0:02:28]}  Qa5 {[%clk 0:02:17]} 19. Rc1 {[%clk 0:02:15]}  Kb8 {[%clk 0:02:08]} 20. Rxc6 {[%clk 0:02:12]}  exd4 {[%clk 0:02:02]} 21. Nxd4 {[%clk 0:02:10]}  Ne7 {[%clk 0:01:55]} 22. Nxe7 {[%clk 0:02:01]}  Rxe7 {[%clk 0:01:54]} 23. Rhc1 {[%clk 0:01:54]}  Nb6 {[%clk 0:01:51]} 24. R6c5 {[%clk 0:01:26]}  Qd2 {[%clk 0:01:49]} 25. Nf5 {[%clk 0:01:16]}  Red7 {[%clk 0:01:45]} 26. d4 {[%clk 0:01:13]}  g6 {[%clk 0:01:41]} 27. Ng3 {[%clk 0:01:12]}  Qf2 {[%clk 0:01:39]} 28. Ne4 {[%clk 0:01:09]}  Qxf3 {[%clk 0:01:39]} 29. Nf6 {[%clk 0:01:09]}  Re7 {[%clk 0:01:37]} 30. R5c3 {[%clk 0:01:03]}  Qf5+ {[%clk 0:01:32]} 31. Qc2 {[%clk 0:00:57]}  Qxg5 {[%clk 0:01:27]} 32. Ne4 {[%clk 0:00:58]}  Qf5 {[%clk 0:01:21]} 33. Nc5 {[%clk 0:00:56]}  Qxc2+ {[%clk 0:01:20]} 34. R1xc2 {[%clk 0:00:57]}  Nd5 {[%clk 0:01:19]} 35. Rb3 {[%clk 0:00:53]}  f5 {[%clk 0:00:59]} 36. Rg2 {[%clk 0:00:44]}  b6 {[%clk 0:00:48]} 37. Nd3 {[%clk 0:00:35]}  Nxe3 {[%clk 0:00:44]} 38. Rxg6 {[%clk 0:00:33]}  Rxd4 {[%clk 0:00:43]} 39. a3 {[%clk 0:00:30]}  Red7 {[%clk 0:00:43]} 40. Ne5 {[%clk 0:00:30]}  Rd1+ {[%clk 0:00:36]} 41. Ka2 {[%clk 0:00:29]}  Nc2 {[%clk 0:00:24]} 42. Nxd7+ {[%clk 0:00:29]}  Rxd7 {[%clk 0:00:24]} 43. Rc3 {[%clk 0:00:28]}  Nd4 {[%clk 0:00:23]} 44. Rf6 {[%clk 0:00:29]}  Rd5 {[%clk 0:00:22]} 45. Rf7 {[%clk 0:00:28]}  Nb5 {[%clk 0:00:19]} 46. Re3 {[%clk 0:00:22]}  Nd6 {[%clk 0:00:18]} 47. Rd7 {[%clk 0:00:17]}  Kc8 {[%clk 0:00:18]} 48. Rxa7 {[%clk 0:00:16]}  f4 {[%clk 0:00:18]} 49. Rh3 {[%clk 0:00:16]}  Kb8 {[%clk 0:00:16]} 50. Rd7 {[%clk 0:00:14]}  Kc8 {[%clk 0:00:16]} 51. Rg7 {[%clk 0:00:14]}  Kb8 {[%clk 0:00:15]} 52. Rh8+ {[%clk 0:00:11]}  Nc8 {[%clk 0:00:15]} 53. Rgg8 {[%clk 0:00:09]}  Rc5 {[%clk 0:00:16]} 54. Rf8 {[%clk 0:00:10]}  Rc4 {[%clk 0:00:16]} 55. Kb3 {[%clk 0:00:11]}  b5 {[%clk 0:00:15]} 56. Rf5 {[%clk 0:00:09]}  Kc7 {[%clk 0:00:15]} 57. Rxb5 {[%clk 0:00:09]}  Nd6 {[%clk 0:00:14]} 58. Rd5 {[%clk 0:00:07]}  Re4 {[%clk 0:00:14]} 59. Rd1 {[%clk 0:00:06]}  Kc6 {[%clk 0:00:14]} 60. Rh6 {[%clk 0:00:06]}  Re3+ {[%clk 0:00:15]} 61. Kc2 {[%clk 0:00:06]}  Re2+ {[%clk 0:00:14]} 62. Kc1 {[%clk 0:00:05]}  f3 {[%clk 0:00:14]} 63. Rhxd6+ {[%clk 0:00:06]}  Kc5 {[%clk 0:00:15]} 64. Rf6 {[%clk 0:00:06]}  f2 {[%clk 0:00:15]} 65. Rf3 {[%clk 0:00:06]}  Kc4 {[%clk 0:00:15]} 66. Rc3+ {[%clk 0:00:06]}  Kb5 {[%clk 0:00:14]} 67. Rc2 {[%clk 0:00:06]}  Re4 {[%clk 0:00:13]} 68. Rxf2 {[%clk 0:00:06]} 1-0


[Site "https://www.chess.com"]

[Event "Titled Tuesday Blitz April 19 Early 2022"]
[White "Rustemov, Alexander"]
[Black "Terzi, Alexei"]
[WhiteFideId "4119002"]
[BlackFideId "13505076"]
[WhiteElo "2758"]
[BlackElo "2608"]
[Result "1-0"]
[Round "11"]
[TimeControl "180+1"]
[Date "2022.04.19"]
[WhiteClock "0:00:18"]
[BlackClock "0:00:13"]

1. d4 {[%clk 0:03:00]}  Nf6 {[%clk 0:02:59]} 2. c4 {[%clk 0:03:01]}  c5 {[%clk 0:03:00]} 3. d5 {[%clk 0:02:58]}  b5 {[%clk 0:03:00]} 4. cxb5 {[%clk 0:02:57]}  a6 {[%clk 0:03:00]} 5. e3 {[%clk 0:02:56]}  g6 {[%clk 0:03:00]} 6. Nc3 {[%clk 0:02:55]}  Bg7 {[%clk 0:02:59]} 7. a4 {[%clk 0:02:55]}  O-O {[%clk 0:02:55]} 8. Nf3 {[%clk 0:02:54]}  d6 {[%clk 0:02:54]} 9. e4 {[%clk 0:02:53]}  Nbd7 {[%clk 0:02:48]} 10. h3 {[%clk 0:02:34]}  Bb7 {[%clk 0:02:46]} 11. Bd3 {[%clk 0:02:16]}  axb5 {[%clk 0:02:45]} 12. Bxb5 {[%clk 0:02:14]}  Ba6 {[%clk 0:02:31]} 13. Be3 {[%clk 0:02:07]}  Qa5 {[%clk 0:02:19]} 14. O-O {[%clk 0:02:06]}  Rfb8 {[%clk 0:02:19]} 15. Nd2 {[%clk 0:02:00]}  Bxb5 {[%clk 0:01:43]} 16. axb5 {[%clk 0:01:58]}  Qb4 {[%clk 0:01:30]} 17. Qc2 {[%clk 0:01:54]}  Ne8 {[%clk 0:01:25]} 18. Rxa8 {[%clk 0:01:20]}  Rxa8 {[%clk 0:01:24]} 19. Rc1 {[%clk 0:00:56]}  Nc7 {[%clk 0:01:21]} 20. b3 {[%clk 0:00:55]}  Nxb5 {[%clk 0:01:02]} 21. Nxb5 {[%clk 0:00:53]}  Qxb5 {[%clk 0:01:02]} 22. Nc4 {[%clk 0:00:54]}  Nb6 {[%clk 0:00:54]} 23. g3 {[%clk 0:00:50]}  Nxc4 {[%clk 0:00:51]} 24. bxc4 {[%clk 0:00:50]}  Qa4 {[%clk 0:00:50]} 25. Qxa4 {[%clk 0:00:48]}  Rxa4 {[%clk 0:00:51]} 26. Rc2 {[%clk 0:00:48]}  f5 {[%clk 0:00:48]} 27. exf5 {[%clk 0:00:45]}  gxf5 {[%clk 0:00:49]} 28. Kf1 {[%clk 0:00:45]}  Kf7 {[%clk 0:00:47]} 29. Ke2 {[%clk 0:00:45]}  e5 {[%clk 0:00:47]} 30. dxe6+ {[%clk 0:00:44]}  Kxe6 {[%clk 0:00:48]} 31. g4 {[%clk 0:00:45]}  Ra1 {[%clk 0:00:33]} 32. Kf3 {[%clk 0:00:43]}  Rh1 {[%clk 0:00:32]} 33. Kg2 {[%clk 0:00:43]}  Ra1 {[%clk 0:00:31]} 34. g5 {[%clk 0:00:42]}  Be5 {[%clk 0:00:27]} 35. f4 {[%clk 0:00:42]}  Bg7 {[%clk 0:00:26]} 36. h4 {[%clk 0:00:40]}  Ra3 {[%clk 0:00:26]} 37. Kf2 {[%clk 0:00:37]}  Rc3 {[%clk 0:00:20]} 38. Rxc3 {[%clk 0:00:32]}  Bxc3 {[%clk 0:00:21]} 39. Ke2 {[%clk 0:00:31]}  Bg7 {[%clk 0:00:18]} 40. Kd3 {[%clk 0:00:31]}  Bf8 {[%clk 0:00:18]} 41. h5 {[%clk 0:00:31]}  d5 {[%clk 0:00:18]} 42. Bc1 {[%clk 0:00:26]}  d4 {[%clk 0:00:18]} 43. Bd2 {[%clk 0:00:24]}  Kd6 {[%clk 0:00:18]} 44. Kc2 {[%clk 0:00:24]}  Ke6 {[%clk 0:00:19]} 45. Kb3 {[%clk 0:00:24]}  Kd6 {[%clk 0:00:19]} 46. Ka4 {[%clk 0:00:25]}  Kc6 {[%clk 0:00:20]} 47. Ka5 {[%clk 0:00:25]}  Bg7 {[%clk 0:00:20]} 48. Ka6 {[%clk 0:00:25]}  Bf8 {[%clk 0:00:20]} 49. h6 {[%clk 0:00:24]}  Kc7 {[%clk 0:00:17]} 50. Kb5 {[%clk 0:00:24]}  Kd6 {[%clk 0:00:17]} 51. Ba5 {[%clk 0:00:24]}  d3 {[%clk 0:00:17]} 52. Bd2 {[%clk 0:00:22]}  Ke6 {[%clk 0:00:17]} 53. Ka4 {[%clk 0:00:22]}  Bd6 {[%clk 0:00:13]} 54. Kb3 {[%clk 0:00:20]}  Kf7 {[%clk 0:00:12]} 55. Kc3 {[%clk 0:00:20]}  Bc7 {[%clk 0:00:12]} 56. Kxd3 {[%clk 0:00:20]}  Kg6 {[%clk 0:00:12]} 57. Kc2 {[%clk 0:00:20]}  Bd8 {[%clk 0:00:12]} 58. Kb3 {[%clk 0:00:20]}  Be7 {[%clk 0:00:11]} 59. Ka4 {[%clk 0:00:20]}  Bd6 {[%clk 0:00:11]} 60. Kb5 {[%clk 0:00:21]}  Bf8 {[%clk 0:00:11]} 61. Kc6 {[%clk 0:00:21]}  Be7 {[%clk 0:00:12]} 62. Be3 {[%clk 0:00:20]}  Bf8 {[%clk 0:00:12]} 63. Bxc5 {[%clk 0:00:20]}  Bxh6 {[%clk 0:00:11]} 64. gxh6 {[%clk 0:00:19]}  Kxh6 {[%clk 0:00:12]} 65. Kd5 {[%clk 0:00:18]}  Kg6 {[%clk 0:00:13]} 1-0


[Site "https://www.chess.com"]

[Event "Titled Tuesday Blitz April 19 Early 2022"]
[White "Sadovsky, Artem"]
[Black "Phillips, Rene"]
[WhiteFideId "4155840"]
[BlackFideId "2056275"]
[WhiteElo "2314"]
[BlackElo "2085"]
[Result "1-0"]
[Round "11"]
[TimeControl "180+1"]
[Date "2022.04.19"]
[WhiteClock "0:00:22"]
[BlackClock "0:00:10"]

1. Nf3 {[%clk 0:03:00]}  d5 {[%clk 0:02:59]} 2. e3 {[%clk 0:02:53]}  c6 {[%clk 0:02:59]} 3. c4 {[%clk 0:02:51]}  Bf5 {[%clk 0:02:59]} 4. b3 {[%clk 0:02:48]}  e6 {[%clk 0:02:59]} 5. Bb2 {[%clk 0:02:47]}  Nd7 {[%clk 0:03:00]} 6. Be2 {[%clk 0:02:47]}  Ngf6 {[%clk 0:03:00]} 7. O-O {[%clk 0:02:47]}  Bd6 {[%clk 0:03:00]} 8. d3 {[%clk 0:02:47]}  Qe7 {[%clk 0:03:00]} 9. Nbd2 {[%clk 0:02:48]}  Ba3 {[%clk 0:03:00]} 10. Qc2 {[%clk 0:02:48]}  h6 {[%clk 0:02:59]} 11. Rad1 {[%clk 0:02:42]}  Bxb2 {[%clk 0:02:58]} 12. Qxb2 {[%clk 0:02:42]}  a5 {[%clk 0:02:59]} 13. a3 {[%clk 0:02:41]}  O-O {[%clk 0:02:59]} 14. b4 {[%clk 0:02:35]}  axb4 {[%clk 0:02:56]} 15. axb4 {[%clk 0:02:36]}  Ra4 {[%clk 0:02:53]} 16. c5 {[%clk 0:02:33]}  Rfa8 {[%clk 0:02:51]} 17. Ra1 {[%clk 0:02:33]}  e5 {[%clk 0:02:43]} 18. Rxa4 {[%clk 0:02:28]}  Rxa4 {[%clk 0:02:43]} 19. Ra1 {[%clk 0:02:28]}  Rxa1+ {[%clk 0:02:42]} 20. Qxa1 {[%clk 0:02:28]}  e4 {[%clk 0:02:36]} 21. Nd4 {[%clk 0:02:28]}  Bg6 {[%clk 0:02:32]} 22. dxe4 {[%clk 0:02:26]}  Nxe4 {[%clk 0:02:30]} 23. Nxe4 {[%clk 0:02:25]}  Bxe4 {[%clk 0:02:28]} 24. Bf3 {[%clk 0:02:25]}  Bxf3 {[%clk 0:02:24]} 25. Nxf3 {[%clk 0:02:22]}  Qf6 {[%clk 0:02:20]} 26. Nd4 {[%clk 0:02:04]}  Qg6 {[%clk 0:02:11]} 27. h4 {[%clk 0:01:54]}  Qd3 {[%clk 0:02:09]} 28. Qa8+ {[%clk 0:01:48]}  Kh7 {[%clk 0:01:45]} 29. Qxb7 {[%clk 0:01:48]}  Qd1+ {[%clk 0:01:44]} 30. Kh2 {[%clk 0:01:48]}  Ne5 {[%clk 0:01:43]} 31. Nxc6 {[%clk 0:01:32]}  Ng4+ {[%clk 0:01:37]} 32. Kg3 {[%clk 0:01:32]}  f5 {[%clk 0:01:17]} 33. Qf7 {[%clk 0:01:12]}  Qc2 {[%clk 0:01:15]} 34. Ne7 {[%clk 0:00:56]}  Qxf2+ {[%clk 0:01:12]} 35. Kh3 {[%clk 0:00:56]}  Qxe3+ {[%clk 0:01:09]} 36. g3 {[%clk 0:00:57]}  Nf2+ {[%clk 0:00:56]} 37. Kg2 {[%clk 0:00:57]}  Ne4 {[%clk 0:00:20]} 38. Qxf5+ {[%clk 0:00:53]}  Kh8 {[%clk 0:00:18]} 39. Ng6+ {[%clk 0:00:50]}  Kg8 {[%clk 0:00:13]} 40. Ne7+ {[%clk 0:00:26]}  Kh8 {[%clk 0:00:11]} 41. Qc8+ {[%clk 0:00:22]}  Kh7 {[%clk 0:00:10]} 42. Qg8# {[%clk 0:00:22]} 1-0


[Site "https://www.chess.com"]